bitfinex/quotes_SOLUSD_20241208
["timestamp","ask_amount","ask_price","bid_price","bid_amount"]
[1733638083892,12.80858941,237.08,237.02,1.0402]
[1733638086005,12.80858941,237.05,237.02,1.0402]
[1733638087504,0.12549,237.08,237.02,13.84878941]
[1733638088796,12.80858941,237.12,237.05,12.80858941]
[1733638089199,12.80858941,237.13,237.06,12.80858941]
[1733638090028,10.5415,237.16,237.09,12.80858941]
[1733638090325,12.80858941,237.15,237.08,12.80858941]
[1733638090523,12.80858941,237.14,237.08,12.80858941]
[1733638090726,12.80858941,237.15,237.08,12.80858941]
[1733638091424,0.12549,237.14,237.08,12.80858941]
[1733638096610,8.32401366,237.14,237.08,8.19852366]
[1733638104345,6.5958,237.29,237.13,8.19852366]
[1733638104513,6.5958,237.29,237.07,23.776884]
[1733638104514,8.19852366,237.23,237.16,8.19852366]
[1733638104852,8.19852366,237.22,237.14,9.75122366]
[1733638105513,8.32401366,237.17,237.08,20.0]
[1733638105736,8.19852366,237.15,237.08,8.19852366]
[1733638106164,8.19852366,237.15,237.07,20.0]
[1733638106338,8.19852366,237.15,237.09,8.19852366]
[1733638106515,8.19852366,237.16,237.09,8.19852366]
[1733638107244,0.12549,237.19,237.14,8.19852366]
[1733638107849,0.12549,237.2,237.14,8.19852366]
[1733638111937,8.19852366,237.21,237.14,8.19852366]
[1733638112143,20.0,237.23,237.17,8.19852366]
[1733638114042,20.0,237.23,237.16,8.19852366]
[1733638114245,8.32401366,237.22,237.15,8.19852366]
[1733638117733,8.32401366,237.2,237.14,1.576]
[1733638117922,8.19852366,237.2,237.13,8.19852366]
[1733638118450,0.12549,237.19,237.13,8.19852366]
[1733638118748,8.19852366,237.18,237.09,1.576]
[1733638119044,0.12549,237.17,237.11,8.19852366]
[1733638119244,8.19852366,237.16,237.09,9.77452366]
[1733638119743,0.12549,237.15,237.09,1.576]
[1733638119928,0.12549,237.15,237.09,9.77452366]
[1733638121172,0.12549,237.15,237.1,8.19852366]
[1733638121347,20.0,237.17,237.12,8.19852366]
[1733638121719,0.12549,237.2,237.14,8.19852366]
[1733638124135,8.32401366,237.2,237.13,8.19852366]
[1733638127052,8.19852366,237.19,237.09,1.576]
[1733638127357,8.19852366,237.19,237.12,8.19852366]
[1733638128352,8.19852366,237.2,237.12,8.19852366]
[1733638128673,0.12549,237.19,237.13,8.19852366]
[1733638128850,8.32401366,237.19,237.09,1.576]
[1733638129039,8.32401366,237.19,237.12,8.19852366]
[1733638129237,0.12549,237.19,237.12,8.19852366]
[1733638129545,0.12549,237.19,237.09,1.576]
[1733638129946,0.12549,237.19,237.13,8.19852366]
[1733638130149,0.12549,237.19,237.14,8.19852366]
[1733638130533,0.12549,237.2,237.14,8.19852366]
[1733638130727,20.0,237.21,237.16,8.19852366]
[1733638131038,20.0,237.21,237.09,1.576]
[1733638131039,20.0,237.21,237.17,8.19852366]
[1733638131346,0.12549,237.23,237.17,8.19852366]
[1733638131658,10.5382,237.24,237.18,8.19852366]
[1733638132238,8.19852366,237.26,237.18,8.19852366]
[1733638132639,20.0,237.23,237.18,8.19852366]
[1733638133939,10.536,237.28,237.18,8.19852366]
[1733638133940,28.19852366,237.25,237.18,8.19852366]
[1733638134462,0.12549,237.24,237.18,8.19852366]
[1733638136734,8.19852366,237.21,237.09,3.21747782]
[1733638136952,8.19852366,237.21,237.14,8.19852366]
[1733638137143,8.19852366,237.2,237.13,8.19852366]
[1733638137963,8.19852366,237.21,237.13,8.19852366]
[1733638138535,8.19852366,237.22,237.15,8.19852366]
[1733638138740,0.12549,237.22,237.15,8.19852366]
[1733638138961,0.12549,237.22,237.09,1.576]
[1733638139160,8.32401366,237.22,237.15,8.19852366]
[1733638140034,8.32401366,237.22,237.09,1.576]
[1733638140035,0.12549,237.22,237.16,8.19852366]
[1733638140240,0.12549,237.23,237.17,8.19852366]
[1733638140957,0.12549,237.23,237.16,8.19852366]
[1733638141666,8.19852366,237.24,237.16,8.19852366]
[1733638142972,8.32401366,237.23,237.15,8.19852366]
[1733638143265,8.19852366,237.21,237.14,8.19852366]
[1733638144657,8.32401366,237.23,237.16,8.19852366]
[1733638147047,10.538,237.24,237.16,8.19852366]
[1733638147439,18.73652366,237.24,237.16,8.19852366]
[1733638147842,8.19852366,237.23,237.16,8.19852366]
[1733638148369,8.19852366,237.22,237.1,20.0]
[1733638148586,8.19852366,237.2,237.09,1.576]
[1733638148738,8.19852366,237.19,237.11,8.19852366]
[1733638149777,8.19852366,237.17,237.09,1.576]
[1733638149947,8.19852366,237.17,237.1,8.19852366]
[1733638151643,8.19852366,237.17,237.04,7.9482]
[1733638151644,8.19852366,237.18,237.11,8.19852366]
[1733638152478,8.32401366,237.19,237.11,8.19852366]
[1733638153352,8.32401366,237.19,237.12,8.19852366]
[1733638153653,6.5424,237.2,237.15,8.19852366]
[1733638154461,20.0,237.23,237.17,8.19852366]
[1733638155664,20.0,237.22,237.17,8.19852366]
[1733638157751,20.0,237.22,237.07,4.208]
[1733638157948,18.4354,237.26,237.19,8.19852366]
[1733638158181,20.0,237.23,237.19,8.19852366]
[1733638158867,20.0,237.23,237.2,8.19852366]
[1733638159569,20.0,237.23,237.19,8.19852366]
[1733638160163,20.0,237.23,237.18,8.19852366]
[1733638161076,20.0,237.23,237.13,1.6555]
[1733638161282,20.0,237.23,237.18,8.19852366]
[1733638162082,20.0,237.23,237.13,1.6555]
[1733638162281,20.0,237.23,237.18,8.19852366]
[1733638162493,20.0,237.23,237.17,8.19852366]
[1733638163876,20.0,237.23,237.16,8.19852366]
[1733638165393,28.19852366,237.23,237.16,8.19852366]
[1733638166370,8.19852366,237.19,237.11,20.0]
[1733638166587,20.0,237.23,237.07,1.6555]
[1733638166588,8.19852366,237.16,237.07,1.6555]
[1733638166808,8.19852366,237.16,237.09,8.19852366]
[1733638166991,8.19852366,237.17,237.1,8.19852366]
[1733638169896,8.32401366,237.19,237.12,8.19852366]
[1733638170101,8.19852366,237.18,237.11,8.19852366]
[1733638170502,0.12549,237.19,237.11,8.19852366]
[1733638170690,8.19852366,237.18,237.11,8.19852366]
[1733638173193,8.19852366,237.18,237.07,21.6555]
[1733638173400,8.19852366,237.18,237.11,8.19852366]
[1733638175020,8.19852366,237.18,237.0,130.34220303]
[1733638175021,8.19852366,237.12,237.0,1.539]
[1733638175223,8.19852366,237.09,237.02,8.19852366]
[1733638175591,8.19852366,237.09,237.0,1.539]
[1733638175822,8.19852366,237.09,237.02,8.19852366]
[1733638175986,8.19852366,237.1,237.03,8.19852366]
[1733638177817,20.0,237.14,237.07,8.19852366]
[1733638177998,8.19852366,237.15,237.07,8.19852366]
[1733638178199,6.1107,237.17,237.09,8.19852366]
[1733638178607,6.1107,237.17,237.1,8.19852366]
[1733638179104,14.30922366,237.17,237.1,8.19852366]
[1733638179425,14.30922366,237.17,237.09,8.19852366]
[1733638179989,8.19852366,237.16,237.08,8.19852366]
[1733638180797,14.30922366,237.17,237.1,8.19852366]
[1733638181807,16.6495,237.22,237.11,8.19852366]
[1733638182131,8.19852366,237.2,237.11,8.19852366]
[1733638182791,8.19852366,237.18,237.07,20.12549]
[1733638182991,8.19852366,237.18,237.1,8.19852366]
[1733638183290,8.19852366,237.18,237.07,20.12549]
[1733638183504,8.19852366,237.19,237.11,8.19852366]
[1733638184427,8.19852366,237.15,237.07,0.12549]
[1733638184723,8.19852366,237.17,237.09,8.19852366]
[1733638185314,23.776884,237.21,237.13,8.19852366]
[1733638185522,14.30922366,237.22,237.15,8.19852366]
[1733638185912,8.19852366,237.2,237.13,8.19852366]
[1733638186926,8.19852366,237.18,237.11,8.19852366]
[1733638187132,8.19852366,237.18,237.09,1.539]
[1733638187133,23.902374,237.21,237.12,8.19852366]
[1733638187339,8.19852366,237.21,237.13,8.19852366]
[1733638187824,8.19852366,237.21,237.14,8.19852366]
[1733638188032,6.1107,237.22,237.15,8.19852366]
[1733638188033,14.30922366,237.22,237.15,8.19852366]
[1733638188709,14.30922366,237.22,237.14,8.19852366]
[1733638189230,8.19852366,237.19,237.1,0.12549]
[1733638189437,8.19852366,237.19,237.12,8.19852366]
[1733638189743,8.19852366,237.2,237.13,8.19852366]
[1733638190330,8.19852366,237.17,237.09,1.539]
[1733638190530,8.19852366,237.17,237.09,21.539]
[1733638190731,8.19852366,237.17,237.09,29.73752366]
[1733638191614,8.19852366,237.17,237.1,8.19852366]
[1733638193134,8.19852366,237.16,237.04,20.0]
[1733638193339,0.37647,237.16,237.01,23.776884]
[1733638193638,20.0,237.13,236.98,1.5871]
[1733638193838,28.19852366,237.13,237.05,8.19852366]
[1733638194143,23.902374,237.16,237.08,8.19852366]
[1733638194445,8.19852366,237.15,237.08,8.19852366]
[1733638195810,8.19852366,237.16,237.08,8.19852366]
[1733638196010,1.5861,237.19,237.09,8.19852366]
[1733638196260,9.78462366,237.19,237.12,8.19852366]
[1733638196433,9.78462366,237.19,237.11,8.19852366]
[1733638198213,9.78462366,237.19,237.02,19.75540839]
[1733638198214,8.19852366,237.17,237.1,8.19852366]
[1733638198531,8.19852366,237.15,237.07,8.19852366]
[1733638199212,8.19852366,237.14,237.07,8.19852366]
[1733638200452,8.19852366,237.15,237.07,8.19852366]
[1733638200653,8.19852366,237.15,237.08,8.19852366]
[1733638201842,8.19852366,237.17,237.09,8.19852366]
[1733638203727,10.5405,237.18,237.09,8.19852366]
[1733638203728,8.19852366,237.16,237.09,8.19852366]
[1733638203923,8.19852366,237.16,237.08,8.19852366]
[1733638206259,8.19852366,237.17,237.09,8.19852366]
[1733638206539,8.19852366,237.17,237.05,20.12549]
[1733638206753,8.19852366,237.17,237.09,8.19852366]
[1733638206924,8.19852366,237.16,237.08,8.19852366]
[1733638207651,8.19852366,237.16,237.0,43.6594372]
[1733638207652,8.19852366,237.13,237.0,1.65737038]
[1733638207843,8.19852366,237.11,237.01,20.0]
[1733638208024,8.19852366,237.11,237.03,8.19852366]
[1733638208543,8.19852366,237.1,237.02,8.19852366]
[1733638208747,8.19852366,237.09,237.02,8.19852366]
[1733638209544,6.6294,237.14,236.98,1.5871]
[1733638209545,8.19852366,237.08,236.98,1.5871]
[1733638209743,8.19852366,237.08,237.0,8.19852366]
[1733638211050,20.0,237.09,237.0,8.19852366]
[1733638211239,8.19852366,237.07,237.0,8.19852366]
[1733638212052,8.19852366,237.07,236.98,1.5871]
[1733638212357,8.19852366,237.06,236.98,9.78562366]
[1733638212550,8.19852366,237.06,236.98,1.5871]
[1733638212730,8.19852366,237.06,236.98,9.78562366]
[1733638213126,8.19852366,237.06,236.99,8.19852366]
[1733638213930,30.5446,237.09,236.98,1.5871]
[1733638213931,8.19852366,237.07,236.98,1.5871]
[1733638214235,8.19852366,237.07,237.0,8.19852366]
[1733638214550,8.19852366,237.06,236.98,1.5871]
[1733638214757,8.19852366,237.06,236.99,8.19852366]
[1733638214943,8.19852366,237.06,236.98,9.78562366]
[1733638215152,8.19852366,237.05,236.98,1.5871]
[1733638215340,30.5446,237.09,236.94,0.48665]
[1733638215341,8.19852366,237.03,236.94,0.48665]
[1733638215536,8.19852366,237.03,236.96,8.19852366]
[1733638215738,8.19852366,237.02,236.95,8.19852366]
[1733638216461,8.19852366,237.02,236.94,0.48665]
[1733638216631,8.19852366,237.02,236.95,8.19852366]
[1733638217055,8.19852366,237.02,236.94,0.48665]
[1733638217236,8.19852366,236.99,236.94,0.48665]
[1733638218365,30.5477,237.02,236.94,0.48665]
[1733638218536,30.5477,237.02,236.94,8.68517366]
[1733638218537,28.19852366,237.02,236.94,8.68517366]
[1733638219057,20.0,237.03,236.96,8.19852366]
[1733638219273,8.19852366,237.05,236.98,8.19852366]
[1733638219765,8.19852366,237.0,236.94,0.48665]
[1733638219965,8.19852366,237.01,236.94,0.48665]
[1733638220137,17.0022,237.06,236.96,8.19852366]
[1733638220343,8.19852366,237.03,236.96,8.19852366]
[1733638220561,8.19852366,237.02,236.95,8.19852366]
[1733638220761,8.19852366,237.02,236.94,0.48665]
[1733638220969,8.19852366,237.02,236.95,8.19852366]
[1733638221337,8.19852366,236.99,236.94,0.48665]
[1733638221842,8.19852366,236.98,236.94,0.48665]
[1733638224236,8.19852366,236.99,236.94,0.48665]
[1733638224569,20.0,236.99,236.94,0.48665]
[1733638224863,28.19852366,236.99,236.94,0.48665]
[1733638226247,8.19852366,236.98,236.94,0.48665]
[1733638228768,28.19852366,236.99,236.94,0.48665]
[1733638228950,8.19852366,236.98,236.94,0.48665]
[1733638230279,28.19852366,236.95,236.94,0.48665]
[1733638230477,52.10089766,236.95,236.94,0.48665]
[1733638234268,43.902374,236.95,236.94,0.48665]
[1733638234589,52.10089766,236.95,236.94,0.48665]
[1733638238886,52.35187766,236.95,236.94,5e-05]
[1733638244256,44.153354,236.95,236.94,5e-05]
[1733638244461,20.0,236.95,236.94,5e-05]
[1733638244681,28.19852366,236.95,236.94,5e-05]
[1733638245281,28.44950366,236.95,236.94,5e-05]
[1733638245961,52.35187766,236.95,236.94,5e-05]
[1733638246161,44.027864,236.95,236.94,5e-05]
[1733638246364,52.22638766,236.95,236.94,5e-05]
[1733638247565,52.35187766,236.95,236.94,5e-05]
[1733638247969,44.153354,236.95,236.94,5e-05]
[1733638248157,52.35187766,236.95,236.94,5e-05]
[1733638248761,44.153354,236.95,236.94,5e-05]
[1733638248962,52.35187766,236.95,236.94,5e-05]
[1733638249789,52.10089766,236.95,236.94,5e-05]
[1733638251589,10.5498,236.97,236.94,5e-05]
[1733638251771,8.19852366,236.98,236.94,5e-05]
[1733638251963,8.19852366,236.97,236.94,5e-05]
[1733638252164,8.19852366,236.98,236.94,5e-05]
[1733638252382,10.5482,237.01,236.94,5e-05]
[1733638252554,8.19852366,236.98,236.94,5e-05]
[1733638252759,8.19852366,236.99,236.94,5e-05]
[1733638253371,23.776884,237.0,236.94,5e-05]
[1733638253663,8.19852366,237.0,236.94,5e-05]
[1733638254587,8.19852366,236.99,236.94,5e-05]
[1733638255699,10.5464,237.05,236.94,5e-05]
[1733638255865,8.19852366,236.98,236.94,5e-05]
[1733638256565,23.776884,236.97,236.94,5e-05]
[1733638256888,31.97540766,236.95,236.94,5e-05]
[1733638257064,23.776884,236.95,236.94,5e-05]
[1733638257373,31.97540766,236.95,236.94,5e-05]
[1733638258580,23.776884,237.02,236.94,5e-05]
[1733638258889,23.776884,236.97,236.94,5e-05]
[1733638259096,31.97540766,236.97,236.94,5e-05]
[1733638259790,23.776884,236.97,236.94,5e-05]
[1733638259990,31.97540766,236.97,236.94,5e-05]
[1733638260194,23.776884,236.97,236.94,5e-05]
[1733638260375,31.97540766,236.97,236.94,5e-05]
[1733638261280,23.776884,236.97,236.94,5e-05]
[1733638261481,31.97540766,236.97,236.94,5e-05]
[1733638261964,23.776884,236.99,236.94,5e-05]
[1733638263374,8.19852366,236.98,236.94,5e-05]
[1733638264778,23.776884,236.99,236.94,5e-05]
[1733638264988,8.19852366,236.98,236.94,5e-05]
[1733638265865,8.19852366,236.95,236.94,5e-05]
[1733638266502,8.32401366,236.95,236.94,5e-05]
[1733638266673,20.12549,236.95,236.94,5e-05]
[1733638267170,28.32401366,236.95,236.94,5e-05]
[1733638267615,28.57499366,236.95,236.94,5e-05]
[1733638268011,20.37647,236.95,236.94,5e-05]
[1733638268311,28.57499366,236.95,236.94,5e-05]
[1733638270612,20.37647,236.95,236.94,5e-05]
[1733638270790,28.57499366,236.95,236.94,5e-05]
[1733638272320,20.12549,236.95,236.94,5e-05]
[1733638272625,28.19852366,236.95,236.94,5e-05]
[1733638272788,20.0,236.95,236.94,5e-05]
[1733638272994,8.19852366,236.98,236.94,5e-05]
[1733638273920,10.5479,237.02,236.94,5e-05]
[1733638274087,8.19852366,237.0,236.94,5e-05]
[1733638276231,8.19852366,236.99,236.94,5e-05]
[1733638278911,8.19852366,237.0,236.94,5e-05]
[1733638281830,10.546,237.06,236.95,9.85772366]
[1733638282002,8.19852366,237.04,236.97,8.19852366]
[1733638282607,8.19852366,237.08,237.0,8.19852366]
[1733638283313,10.5443,237.1,237.0,8.19852366]
[1733638283511,8.19852366,237.08,237.01,8.19852366]
[1733638284125,10.5418,237.15,237.03,9.85772366]
[1733638284330,8.19852366,237.13,237.05,8.19852366]
[1733638284511,8.19852366,237.12,237.05,8.19852366]
[1733638286708,8.19852366,237.13,237.05,8.19852366]
[1733638287026,23.776884,237.12,237.06,8.19852366]
[1733638287531,10.5418,237.15,237.03,1.6592]
[1733638287532,23.776884,237.14,237.07,8.19852366]
[1733638287702,23.776884,237.14,237.08,8.19852366]
[1733638287901,23.776884,237.15,237.09,8.19852366]
[1733638288101,10.5403,237.19,237.03,1.6592]
[1733638288102,8.19852366,237.17,237.1,8.19852366]
[1733638288502,1.6344,237.24,237.11,8.19852366]
[1733638288702,10.5386,237.23,237.14,8.19852366]
[1733638288910,8.19852366,237.21,237.14,8.19852366]
[1733638289111,8.19852366,237.18,237.12,1.6592]
[1733638289321,8.19852366,237.17,237.12,1.6592]
[1733638289527,8.19852366,237.16,237.12,1.6592]
[1733638289732,8.19852366,237.18,237.12,1.6592]
[1733638290105,23.776884,237.17,237.12,1.6592]
[1733638290306,23.776884,237.19,237.12,9.85772366]
[1733638290834,8.19852366,237.22,237.14,8.19852366]
[1733638291036,23.776884,237.21,237.15,8.19852366]
[1733638292441,23.776884,237.21,237.16,8.19852366]
[1733638292944,31.97540766,237.22,237.15,8.19852366]
[1733638294152,31.97540766,237.2,237.12,7.8208]
[1733638294309,23.776884,237.17,237.12,1.6592]
[1733638294647,31.97540766,237.17,237.12,1.6592]
[1733638294827,23.776884,237.13,237.12,1.6592]
[1733638295141,31.97540766,237.13,237.07,1.5932]
[1733638295309,23.776884,237.11,237.07,1.5932]
[1733638296339,23.776884,237.12,237.07,1.5932]
[1733638296532,23.776884,237.15,237.09,8.19852366]
[1733638297437,23.776884,237.15,237.08,8.19852366]
[1733638297636,31.97540766,237.15,237.07,9.79172366]
[1733638297836,31.97540766,237.13,237.07,1.5932]
[1733638298047,31.97540766,237.11,237.07,1.5932]
[1733638298228,23.776884,237.11,237.07,1.5932]
[1733638298540,20.0,237.18,237.1,8.19852366]
[1733638298756,8.19852366,237.16,237.09,8.19852366]
[1733638299117,23.776884,237.15,237.07,1.5932]
[1733638299342,31.97540766,237.15,237.08,8.19852366]
[1733638299552,31.97540766,237.15,237.07,1.5932]
[1733638299728,23.776884,237.17,237.09,8.19852366]
[1733638300045,23.776884,237.15,237.09,8.19852366]
[1733638300228,23.776884,237.15,237.08,8.19852366]
[1733638300431,31.97540766,237.15,237.07,9.79172366]
[1733638300663,8.19852366,237.14,237.07,9.79172366]
[1733638300950,23.776884,237.13,237.07,9.79172366]
[1733638302226,23.776884,237.17,237.1,8.19852366]
[1733638302641,38.73912366,237.18,237.1,8.19852366]
[1733638303747,23.776884,237.1,237.0,1.5932]
[1733638303948,23.776884,237.02,237.0,1.5932]
[1733638304449,23.776884,237.02,236.95,14.24452366]
[1733638304930,31.97540766,237.02,236.95,6.046]
[1733638305840,23.776884,237.02,236.96,8.19852366]
[1733638306158,23.776884,237.02,236.95,6.046]
[1733638306159,23.776884,237.03,236.98,8.19852366]
[1733638306454,0.12549,237.09,237.02,8.19852366]
[1733638306455,8.19852366,237.09,237.02,8.19852366]
[1733638306656,23.776884,237.08,237.02,12.8156549]
[1733638306836,23.776884,237.05,236.99,12.8156549]
[1733638307236,23.776884,237.05,236.98,20.0]
[1733638307237,23.776884,237.05,237.0,12.8156549]
[1733638307440,12.8156549,237.08,237.0,12.8156549]
[1733638308064,12.8156549,237.05,236.95,6.046]
[1733638308230,12.8156549,237.05,236.98,12.8156549]
[1733638308642,12.8156549,237.04,236.97,12.8156549]
[1733638308831,12.8156549,237.04,236.96,12.8156549]
[1733638309227,12.8156549,237.02,236.94,1.5932]
[1733638309432,12.8156549,237.02,236.95,12.8156549]
[1733638309655,12.8156549,237.02,236.94,1.5932]
[1733638309833,12.8156549,237.02,236.95,12.8156549]
[1733638311038,12.8156549,237.01,236.94,14.4088549]
[1733638311253,12.8156549,237.0,236.94,1.5932]
[1733638313028,12.8156549,237.02,236.95,12.8156549]
[1733638313928,32.9411449,237.03,236.95,12.8156549]
[1733638314135,20.0,237.01,236.95,12.8156549]
[1733638314359,32.8156549,237.03,236.96,12.8156549]
[1733638315265,32.8156549,237.03,236.95,12.8156549]
[1733638315963,10.547,237.04,236.94,1.5932]
[1733638315964,12.8156549,236.98,236.94,1.5932]
[1733638316266,12.8156549,236.99,236.92,12.8156549]
[1733638316829,20.0,237.01,236.93,12.8156549]
[1733638316830,12.8156549,237.0,236.93,12.8156549]
[1733638318568,12.8156549,236.99,236.9,4.99632043]
[1733638319051,12.8156549,236.99,236.92,12.8156549]
[1733638320350,12.8156549,236.99,236.9,4.99632043]
[1733638320874,12.8156549,236.97,236.9,4.99632043]
[1733638321482,12.8156549,236.96,236.9,4.99632043]
[1733638322048,0.12549,236.99,236.91,12.8156549]
[1733638322250,12.8156549,236.98,236.91,12.8156549]
[1733638323685,12.8156549,236.97,236.9,17.81197533]
[1733638323905,20.0,237.03,237.02,156.2596751]
[1733638324261,3.95829755,237.09,237.02,156.2596751]
[1733638324466,6.3979,237.1,237.02,156.2596751]
[1733638325263,10.5453,237.08,237.02,156.2596751]
[1733638325556,12.8156549,237.07,237.02,156.2596751]
[1733638326681,12.8156549,237.06,237.02,156.2596751]
[1733638327151,12.8156549,237.07,237.02,156.2596751]
[1733638327349,12.9411449,237.07,237.02,156.2596751]
[1733638328375,12.8156549,237.07,237.02,156.2596751]
[1733638328561,12.8156549,237.08,237.02,156.2596751]
[1733638329289,12.8156549,237.1,237.02,169.07533]
[1733638329448,12.8156549,237.09,237.02,169.07533]
[1733638329784,12.8156549,237.12,237.05,12.8156549]
[1733638330555,12.8156549,237.14,237.07,12.8156549]
[1733638331072,12.8156549,237.13,237.06,12.8156549]
[1733638331280,12.8156549,237.12,237.02,156.2596751]
[1733638331476,12.8156549,237.12,237.04,12.8156549]
[1733638331683,12.8156549,237.08,237.02,156.2596751]
[1733638334163,10.543,237.13,237.02,156.2596751]
[1733638334164,12.8156549,237.06,237.02,156.2596751]
[1733638334893,12.8156549,237.07,237.02,156.2596751]
[1733638335276,0.12549,237.11,237.02,156.2596751]
[1733638335277,12.8156549,237.08,237.02,156.2596751]
[1733638335600,12.8156549,237.1,237.03,12.8156549]
[1733638335780,0.12549,237.12,237.02,156.2596751]
[1733638335781,12.8156549,237.11,237.04,12.8156549]
[1733638335989,12.8156549,237.1,237.03,12.8156549]
[1733638337366,12.8156549,237.09,237.02,169.07533]
[1733638337802,12.8156549,237.08,237.02,156.2596751]
[1733638339895,12.8156549,237.07,237.02,156.2596751]
[1733638341793,12.8156549,237.04,237.02,156.2596751]
[1733638342388,12.8156549,237.03,237.02,156.2596751]
[1733638343403,0.25098,237.1,237.02,156.2596751]
[1733638343404,12.8156549,237.07,237.02,156.2596751]
[1733638344382,12.8156549,237.06,237.02,156.2596751]
[1733638345900,12.8156549,237.07,237.02,156.2596751]
[1733638346494,12.8156549,237.09,237.02,169.07533]
[1733638346696,12.8156549,237.1,237.03,12.8156549]
[1733638347119,12.8156549,237.08,237.02,156.2596751]
[1733638347291,12.8156549,237.1,237.03,12.8156549]
[1733638347494,12.8156549,237.11,237.03,12.8156549]
[1733638348125,12.8156549,237.1,237.02,156.2596751]
[1733638348330,12.8156549,237.11,237.03,12.8156549]
[1733638348731,12.8156549,237.12,237.04,12.8156549]
[1733638348908,12.8156549,237.13,237.05,12.8156549]
[1733638349227,12.8156549,237.13,237.03,6.6235]
[1733638349228,12.8156549,237.13,237.06,12.8156549]
[1733638350411,12.49606437,237.15,237.07,12.8156549]
[1733638350735,12.49606437,237.15,237.08,1.5597]
[1733638351426,12.8156549,237.13,237.08,1.5597]
[1733638352520,8.19856641,237.14,237.08,1.5597]
[1733638352723,10.5396,237.2,237.1,8.19856641]
[1733638352928,6.3891,237.26,237.12,8.19856641]
[1733638353220,8.19856641,237.19,237.12,8.19856641]
[1733638354518,12.80467904,237.19,237.12,12.80467904]
[1733638356211,12.80467904,237.2,237.13,12.80467904]
[1733638356412,12.80467904,237.21,237.13,12.80467904]
[1733638356740,21.0714,237.29,237.08,1.5597]
[1733638356741,12.80467904,237.23,237.16,12.80467904]
[1733638357550,10.5364,237.28,237.16,12.80467904]
[1733638357551,12.80467904,237.24,237.17,1.6271]
[1733638357722,10.5364,237.28,237.18,12.80467904]
[1733638357723,12.80467904,237.26,237.18,12.80467904]
[1733638358116,12.80467904,237.25,237.17,14.43177904]
[1733638358833,10.5364,237.28,237.17,14.43177904]
[1733638358834,12.80467904,237.26,237.19,12.80467904]
[1733638359146,12.80467904,237.27,237.2,12.80467904]
[1733638360446,12.80467904,237.28,237.2,12.80467904]
[1733638361245,12.80467904,237.27,237.2,12.80467904]
[1733638362297,12.80467904,237.26,237.19,12.80467904]
[1733638362510,12.80467904,237.26,237.18,12.80467904]
[1733638363067,10.5351,237.3,237.2,12.80467904]
[1733638363266,12.80467904,237.27,237.2,12.80467904]
[1733638363775,12.80467904,237.26,237.18,12.80467904]
[1733638364482,12.80467904,237.27,237.19,12.80467904]
[1733638364688,12.80467904,237.26,237.18,12.80467904]
[1733638364889,12.80467904,237.24,237.17,14.43177904]
[1733638365431,12.80467904,237.19,237.17,1.6271]
[1733638366610,12.80467904,237.2,237.17,1.6271]
[1733638368635,12.80467904,237.18,237.1,14.43177904]
[1733638369618,12.80467904,237.13,237.1,1.6271]
[1733638370129,23.776884,237.11,237.04,14.43177904]
[1733638370328,23.776884,237.11,237.05,12.80467904]
[1733638370486,23.776884,237.12,237.05,12.80467904]
[1733638374122,36.58156304,237.12,237.05,12.80467904]
[1733638375394,12.80467904,237.11,237.04,14.43177904]
[1733638375617,12.80467904,237.1,237.04,1.6271]
[1733638375835,23.776884,237.09,237.04,1.6271]
[1733638376012,23.776884,237.07,237.04,1.6271]
[1733638376901,31.97987083,237.07,237.02,156.2596751]
[1733638377995,31.97987083,237.05,237.02,156.2596751]
[1733638378289,8.20298683,237.04,237.02,156.2596751]
[1733638378522,23.776884,237.03,237.02,156.2596751]
[1733638380094,31.97987083,237.03,237.02,156.2596751]
[1733638382145,23.776884,237.03,237.02,156.2596751]
[1733638382722,31.97987083,237.03,237.02,156.2596751]
[1733638383850,23.776884,237.03,237.02,156.2596751]
[1733638386627,10.545,237.08,237.02,156.2596751]
[1733638387049,10.5434,237.12,237.02,156.2596751]
[1733638387251,8.20298683,237.09,237.02,164.46266193]
[1733638387559,8.20298683,237.08,237.02,156.2596751]
[1733638387918,23.776884,237.07,237.02,156.2596751]
[1733638388529,10.5434,237.12,237.02,156.2596751]
[1733638388851,8.20298683,237.09,237.02,164.46266193]
[1733638389149,8.20298683,237.1,237.03,8.20298683]
[1733638389854,23.776884,237.09,237.03,8.20298683]
[1733638390573,23.776884,237.09,237.04,8.20298683]
[1733638390731,10.5415,237.16,237.06,8.20298683]
[1733638390918,8.20298683,237.14,237.07,8.20298683]
[1733638391857,8.20298683,237.13,237.06,8.20298683]